bitfinex/quotes_SOLUSD_20241110
["timestamp","ask_amount","ask_price","bid_price","bid_amount"]
[1731216393760,32.60099737,207.51,207.43,4.808]
[1731216394067,6.4446,207.77,207.59,0.1]
[1731216394259,32.60099737,207.72,207.61,4.808]
[1731216394454,32.60099737,207.72,207.61,11.66942459]
[1731216394656,32.60099737,207.7,207.63,4.808]
[1731216394853,32.60099737,207.72,207.63,11.66942459]
[1731216395048,32.60099737,207.68,207.65,4.808]
[1731216395264,32.60099737,207.68,207.55,8.53689661]
[1731216395265,32.60099737,207.68,207.6,4.808]
[1731216395657,32.60099737,207.7,207.6,4.808]
[1731216396058,32.60099737,207.7,207.59,24.808]
[1731216396257,32.60099737,207.7,207.59,38.89819692]
[1731216396452,32.60099737,207.7,207.58,24.22003561]
[1731216396453,32.60099737,207.7,207.61,24.808]
[1731216396970,32.60099737,207.64,207.52,14.02656451]
[1731216397190,32.60099737,207.64,207.43,31.01545922]
[1731216397191,32.60099737,207.64,207.54,29.30450318]
[1731216398456,32.60099737,207.62,207.54,4.808]
[1731216399072,32.60099737,207.62,207.54,29.30450318]
[1731216399276,32.60099737,207.62,207.54,4.808]
[1731216400671,32.60099737,207.64,207.55,24.756884]
[1731216401563,32.60099737,207.58,207.5,4.808]
[1731216401970,32.60099737,207.64,207.53,24.9775725]
[1731216402155,68.6,207.66,207.51,0.1]
[1731216402156,32.60099737,207.66,207.51,38.21067212]
[1731216402362,32.60099737,207.66,207.55,24.756884]
[1731216402681,32.60099737,207.66,207.56,4.808]
[1731216402854,32.60099737,207.66,207.55,5.87198014]
[1731216403054,32.60099737,207.64,207.55,5.87198014]
[1731216403257,32.60099737,207.6,207.49,31.62429304]
[1731216403562,32.60099737,207.6,207.5,4.808]
[1731216403774,32.60099737,207.62,207.52,4.808]
[1731216404170,32.60099737,207.62,207.52,3.308]
[1731216404477,32.60099737,207.66,207.54,1.808]
[1731216404672,32.60099737,207.66,207.56,4.808]
[1731216405574,6.5753,207.8,207.58,4.808]
[1731216405762,32.60099737,207.76,207.6,4.908]
[1731216405958,32.60099737,207.76,207.62,4.808]
[1731216406471,32.60099737,207.78,207.62,4.908]
[1731216406667,32.60099737,207.78,207.64,4.808]
[1731216407562,4.95378745,207.84,207.7,4.808]
[1731216407766,32.60099737,207.81,207.7,5.54698014]
[1731216408066,32.60099737,207.83,207.71,24.7500698]
[1731216408260,4.95378745,207.84,207.71,24.7500698]
[1731216408560,4.95378745,207.84,207.74,4.808]
[1731216408777,4.95378745,207.84,207.74,12.03669547]
[1731216408980,4.95378745,207.84,207.75,14.06909208]
[1731216409462,4.95378745,207.84,207.78,4.808]
[1731216409665,4.95378745,207.84,207.79,14.06909208]
[1731216412166,32.60099737,207.82,207.79,14.06909208]
[1731216412889,32.60099737,207.82,207.79,6.84039661]
[1731216413784,32.60099737,207.82,207.79,14.34425875]
[1731216413993,4.95378745,207.84,207.8,7.50386214]
[1731216414291,32.60099737,207.8,207.74,4.808]
[1731216414488,32.60099737,207.77,207.7,10.35498014]
[1731216414691,32.60099737,207.77,207.71,6.84039661]
[1731216414878,32.60099737,207.79,207.71,19.89123889]
[1731216415066,32.60099737,207.79,207.72,7.50386214]
[1731216415267,32.60099737,207.79,207.73,6.84039661]
[1731216415478,32.60099737,207.77,207.71,5.54698014]
[1731216415865,32.60099737,207.75,207.71,5.54698014]
[1731216416282,32.60099737,207.73,207.71,5.54698014]
[1731216416483,32.60099737,207.73,207.64,31.35562114]
[1731216416671,4.95378745,207.84,207.68,7.50386214]
[1731216416672,32.60099737,207.75,207.68,7.50386214]
[1731216416983,32.60099737,207.77,207.69,12.38737675]
[1731216417188,32.60099737,207.77,207.7,7.50386214]
[1731216417484,32.60099737,207.77,207.72,4.808]
[1731216417694,32.60099737,207.77,207.71,5.54698014]
[1731216417873,32.60099737,207.77,207.72,7.50386214]
[1731216418075,32.60099737,207.8,207.74,4.808]
[1731216418273,32.60099737,207.78,207.74,4.808]
[1731216418467,32.60099737,207.76,207.73,5.54698014]
[1731216418889,32.60099737,207.8,207.73,13.05084228]
[1731216419083,32.60099737,207.78,207.75,4.808]
[1731216419288,32.60099737,207.78,207.77,4.808]
[1731216419588,32.60099737,207.78,207.77,12.31186214]
[1731216419988,32.60099737,207.78,207.77,4.808]
[1731216420191,32.60099737,207.78,207.77,7.50386214]
[1731216420383,32.60099737,207.78,207.77,12.31186214]
[1731216420893,32.60099737,207.78,207.74,4.808]
[1731216421188,32.60099737,207.75,207.74,6.84039661]
[1731216421389,32.60099737,207.75,207.69,4.808]
[1731216421688,32.60099737,207.75,207.6,27.26714808]
[1731216421689,32.60099737,207.75,207.71,4.808]
[1731216421896,32.60099737,207.77,207.73,4.808]
[1731216422079,32.60099737,207.77,207.75,4.808]
[1731216423079,32.60099737,207.77,207.75,11.66622638]
[1731216424571,21.4038,207.83,207.75,11.66622638]
[1731216424779,32.60099737,207.81,207.77,4.808]
[1731216425089,32.60099737,207.79,207.77,6.84039661]
[1731216425293,32.60099737,207.79,207.72,4.808]
[1731216425491,32.60099737,207.79,207.76,4.808]
[1731216426202,32.60099737,207.8,207.78,4.808]
[1731216426376,32.47559737,207.8,207.79,11.64839661]
[1731216428576,32.35019737,207.8,207.79,11.64839661]
[1731216428790,32.60099737,207.81,207.8,4.808]
[1731216429099,32.60099737,207.81,207.8,11.64839661]
[1731216429596,4.95378745,207.84,207.8,24.39353245]
[1731216429793,4.95378745,207.84,207.82,4.808]
[1731216429994,4.95378745,207.84,207.82,11.26802383]
[1731216430231,4.95378745,207.84,207.83,11.26802383]
[1731216430373,37.55478482,207.84,207.83,11.26802383]
[1731216430695,37.42938482,207.84,207.83,18.43266842]
[1731216431376,4.82838745,207.84,207.83,18.43266842]
[1731216431983,37.42938482,207.84,207.83,11.97264459]
[1731216432391,37.42938482,207.84,207.82,4.808]
[1731216433589,4.82838745,207.84,207.82,4.808]
[1731216433800,4.82838745,207.84,207.83,18.6854462]
[1731216434010,37.42938482,207.84,207.83,18.6854462]
[1731216434182,2.01178745,207.84,207.83,15.01662237]
[1731216434387,8.24850975,208.0,207.85,4.808]
[1731216434584,8.14850975,208.0,207.87,4.808]
[1731216434781,8.14850975,208.0,207.89,4.808]
[1731216435091,8.14850975,208.0,207.89,11.78389685]
[1731216435287,8.14850975,208.0,207.9,4.808]
[1731216435494,8.14850975,208.0,207.9,6.97589685]
[1731216435701,32.60099737,207.91,207.9,6.97589685]
[1731216435904,65.20199474,207.91,207.9,6.97589685]
[1731216436404,65.20199474,207.91,207.9,11.78389685]
[1731216436710,65.20199474,207.91,207.85,4.808]
[1731216436997,8.14850975,208.0,207.85,11.14558415]
[1731216437207,32.60099737,207.9,207.86,7.48674027]
[1731216437889,32.60099737,207.87,207.86,7.48674027]
[1731216438289,65.20199474,207.87,207.8,1.0]
[1731216438487,32.60099737,207.81,207.8,5.808]
[1731216438686,32.60099737,207.81,207.8,12.25464223]
[1731216438890,32.60099737,207.81,207.8,13.35460098]
[1731216439513,32.60099737,207.81,207.8,13.49601598]
[1731216439812,32.60099737,207.9,207.8,19.94265821]
[1731216439813,32.60099737,207.82,207.8,19.94265821]
[1731216440014,32.60099737,207.82,207.81,18.94260528]
[1731216440303,32.60099737,207.82,207.81,7.68796305]
[1731216440304,65.20199474,207.82,207.81,7.68796305]
[1731216440482,65.20199474,207.82,207.75,4.97494275]
[1731216440680,32.60099737,207.76,207.75,4.97494275]
[1731216440895,32.60099737,207.77,207.76,6.58805723]
[1731216441090,32.60099737,207.77,207.76,23.4522219]
[1731216441682,32.60099737,207.77,207.76,16.86416467]
[1731216442100,32.60099737,207.8,207.76,23.16778301]
[1731216442306,32.60099737,207.8,207.77,17.15961249]
[1731216442489,20.0,207.89,207.78,4.808]
[1731216442683,20.0,207.89,207.78,11.01161834]
[1731216442684,32.60099737,207.79,207.78,11.01161834]
[1731216442899,32.60099737,207.79,207.78,4.808]
[1731216443297,32.60099737,207.79,207.77,4.97494275]
[1731216443502,20.0,207.78,207.63,0.1]
[1731216443703,32.60099737,207.68,207.63,0.1]
[1731216443911,32.60099737,207.65,207.62,0.1]
[1731216444204,32.60099737,207.68,207.6,0.1]
[1731216444395,32.60099737,207.66,207.63,0.1]
[1731216444796,32.60099737,207.68,207.63,0.1]
[1731216447094,29.43433376,208.05,207.63,0.1]
[1731216447095,32.60099737,207.78,207.71,0.1]
[1731216447298,32.60099737,207.77,207.68,4.908]
[1731216447505,32.60099737,207.75,207.69,5.63767057]
[1731216447688,32.60099737,207.75,207.69,4.808]
[1731216448204,32.60099737,207.75,207.69,10.44567057]
[1731216448385,32.60099737,207.75,207.7,5.63767057]
[1731216448588,32.60099737,207.77,207.7,5.73767057]
[1731216448782,32.60099737,207.77,207.7,10.8501053]
[1731216448984,32.60099737,207.81,207.71,15.4399094]
[1731216449195,32.60099737,207.79,207.73,4.808]
[1731216449402,32.60099737,207.79,207.74,16.74735774]
[1731216449606,32.60099737,207.77,207.74,16.74735774]
[1731216450082,32.60099737,207.75,207.73,4.808]
[1731216450286,32.60099737,207.75,207.72,4.808]
[1731216450500,32.60099737,207.78,207.73,11.02344834]
[1731216450702,32.60099737,207.76,207.74,6.21544834]
[1731216451006,32.60099737,207.75,207.73,5.76243473]
[1731216451893,32.60099737,207.77,207.73,16.76934418]
[1731216452100,32.60099737,207.77,207.74,6.19890945]
[1731216452404,32.60099737,207.77,207.75,5.76243473]
[1731216452616,32.60099737,207.81,207.77,4.808]
[1731216452798,32.60099737,207.81,207.78,11.96134418]
[1731216455892,32.60099737,207.83,207.78,11.96134418]
[1731216456104,32.60099737,207.83,207.78,16.73081885]
[1731216456306,32.60099737,207.79,207.72,0.1]
[1731216456590,32.60099737,207.79,207.73,16.82650003]
[1731216456807,32.60099737,207.81,207.74,0.1]
[1731216456998,32.60099737,207.81,207.75,10.68673335]
[1731216457190,32.60099737,207.81,207.75,16.82650003]
[1731216457400,27.78599737,207.81,207.75,21.63450003]
[1731216457787,32.60099737,207.79,207.75,21.63450003]
[1731216457993,32.60099737,207.81,207.75,21.63450003]
[1731216458804,32.60099737,207.83,207.76,0.1]
[1731216458999,32.60099737,207.83,207.78,4.808]
[1731216459206,32.60099737,207.83,207.8,4.808]
[1731216459390,32.60099737,207.83,207.82,4.808]
[1731216459590,32.60099737,207.83,207.82,10.94776668]
[1731216459991,37.54832936,207.83,207.82,10.94776668]
[1731216460411,32.60099737,207.83,207.79,4.808]
[1731216460723,32.60099737,207.8,207.79,4.808]
[1731216462104,65.20199474,207.8,207.75,4.808]
[1731216462404,32.60099737,207.76,207.75,4.808]
[1731216462607,32.60099737,207.76,207.69,4.808]
[1731216462789,32.60099737,207.74,207.69,4.808]
[1731216463901,32.60099737,207.73,207.69,4.808]
[1731216466593,32.60099737,207.74,207.69,4.808]
[1731216466794,32.60099737,207.73,207.69,4.808]
[1731216467117,32.60099737,207.78,207.71,4.808]
[1731216467404,32.60099737,207.78,207.73,4.808]
[1731216467618,27.78599737,207.78,207.73,4.808]
[1731216467789,32.60099737,207.77,207.73,4.808]
[1731216468093,32.60099737,207.74,207.73,4.808]
[1731216468791,32.60099737,207.75,207.73,4.808]
[1731216468990,32.60099737,207.76,207.73,4.808]
[1731216472827,32.60099737,207.74,207.73,4.808]
[1731216473133,32.60099737,207.74,207.69,4.808]
[1731216473434,32.60099737,207.7,207.69,4.808]
[1731216473628,32.60099737,207.75,207.69,4.808]
[1731216473818,32.60099737,207.77,207.71,4.808]
[1731216474128,32.60099737,207.77,207.73,4.808]
[1731216474429,32.60099737,207.78,207.73,4.808]
[1731216475013,15.2802,207.87,207.73,4.808]
[1731216475207,15.2802,207.87,207.76,0.1]
[1731216475414,32.60099737,207.84,207.78,4.808]
[1731216475660,32.60099737,207.82,207.8,4.808]
[1731216475944,32.60099737,207.81,207.8,4.808]
[1731216476113,65.20199474,207.81,207.8,4.808]
[1731216476315,6.1519,207.89,207.8,9.57747467]
[1731216476529,32.60099737,207.85,207.8,9.57747467]
[1731216476759,32.60099737,207.81,207.8,9.57747467]
[1731216477028,32.60099737,207.81,207.8,4.808]
[1731216477455,32.60099737,207.81,207.73,4.76947467]
[1731216477744,32.60099737,207.81,207.74,6.57487779]
[1731216477934,32.60099737,207.81,207.74,6.47487779]
[1731216478329,32.60099737,207.79,207.74,6.57487779]
[1731216478521,32.60099737,207.81,207.75,6.49930479]
[1731216478722,32.60099737,207.81,207.76,6.47487779]
[1731216479636,32.60099737,207.79,207.76,6.47487779]
[1731216481040,32.60099737,207.77,207.7,4.70258362]
[1731216481338,32.60099737,207.74,207.7,11.17746141]
[1731216481540,32.60099737,207.74,207.71,6.47487779]
[1731216481737,32.60099737,207.76,207.71,6.47487779]
[1731216482226,32.60099737,207.72,207.58,29.17083698]
[1731216482417,6.6498,207.78,207.63,4.70258362]
[1731216482418,32.60099737,207.66,207.63,4.70258362]
[1731216482834,32.60099737,207.68,207.59,0.1]
[1731216483043,32.60099737,207.68,207.64,6.47487779]
[1731216483333,32.60099737,207.7,207.64,12.97418258]
[1731216483941,32.60099737,207.68,207.64,6.47487779]
[1731216484320,32.60099737,207.66,207.63,4.70258362]
[1731216485042,32.60099737,207.68,207.63,4.70258362]
[1731216485242,32.60099737,207.7,207.64,6.49930479]
[1731216485435,32.60099737,207.7,207.65,4.70258362]
[1731216485638,32.60099737,207.7,207.65,11.20188841]
[1731216485827,16.4288,207.71,207.65,11.20188841]
[1731216485828,32.60099737,207.68,207.65,4.70258362]
[1731216486025,32.60099737,207.68,207.64,6.47487779]
[1731216486026,32.60099737,207.66,207.64,6.47487779]
[1731216486224,16.4288,207.71,207.6,4.70258362]
[1731216486425,32.60099737,207.67,207.61,12.97418258]
[1731216486733,32.60099737,207.67,207.62,4.70258362]
[1731216487042,32.60099737,207.71,207.63,13.07418258]
[1731216487236,32.60099737,207.73,207.64,4.70258362]
[1731216487540,32.60099737,207.73,207.65,17.78218258]
[1731216487729,32.60099737,207.73,207.67,4.808]
[1731216488043,16.4288,207.76,207.69,4.808]
[1731216488044,32.60099737,207.71,207.69,4.808]
[1731216488340,32.60099737,207.71,207.68,11.17746141]
[1731216488523,16.4288,207.76,207.68,4.70258362]
[1731216488524,32.60099737,207.69,207.68,4.70258362]
[1731216489336,32.60099737,207.69,207.63,4.808]
[1731216489543,16.4288,207.76,207.65,4.70258362]
[1731216489736,32.60099737,207.69,207.65,11.20188841]
[1731216489923,32.60099737,207.69,207.66,4.70258362]
[1731216490530,32.60099737,207.69,207.67,4.808]
[1731216491042,32.60099737,207.69,207.66,4.808]
[1731216491346,32.60099737,207.69,207.67,9.51058362]
[1731216493222,32.60099737,207.69,207.57,0.1]
[1731216493223,32.60099737,207.68,207.56,24.88846438]
[1731216493422,39.25079737,207.7,207.56,24.88846438]
[1731216493423,39.25079737,207.7,207.6,4.70258362]
[1731216493627,32.60099737,207.65,207.6,4.70258362]
[1731216494141,32.60099737,207.67,207.61,12.61307147]
[1731216494335,32.60099737,207.67,207.62,9.51058362]
[1731216494927,32.60099737,207.67,207.62,4.808]
[1731216495251,32.60099737,207.69,207.62,4.808]
[1731216495540,32.60099737,207.71,207.64,0.1]
[1731216495747,32.60099737,207.71,207.65,4.808]
[1731216496144,32.60099737,207.73,207.65,4.808]
[1731216496331,32.60099737,207.73,207.67,4.808]
[1731216496649,32.60099737,207.73,207.69,4.808]
[1731216496944,32.60099737,207.77,207.71,4.808]
[1731216497126,32.60099737,207.77,207.73,4.808]
[1731216497324,37.60729279,207.79,207.75,4.808]
[1731216497527,32.60099737,207.79,207.75,9.51058362]
[1731216497829,32.60099737,207.77,207.75,9.51058362]
[1731216498848,22.6924,207.81,207.76,9.51058362]
[1731216499050,32.60099737,207.82,207.77,11.28287779]
[1731216499353,32.60099737,207.78,207.77,4.70258362]
[1731216499533,32.60099737,207.78,207.68,4.70258362]
[1731216499734,32.60099737,207.71,207.68,4.70258362]
[1731216499945,32.60099737,207.69,207.68,4.70258362]
[1731216500325,22.6924,207.74,207.68,4.70258362]
[1731216500326,32.60099737,207.71,207.68,4.70258362]
[1731216500537,22.6924,207.74,207.69,4.808]
[1731216500737,22.6924,207.74,207.71,4.808]
[1731216500933,32.60099737,207.8,207.72,11.50396112]
[1731216501143,32.60099737,207.78,207.72,9.95744758]
[1731216501354,32.60099737,207.76,207.72,9.95744758]
[1731216501650,32.60099737,207.74,207.72,9.95744758]
[1731216501842,32.60099737,207.74,207.72,5.14944758]
[1731216502043,32.60099737,207.74,207.72,9.95744758]
[1731216503758,32.60099737,207.76,207.72,9.95744758]
[1731216504144,32.60099737,207.74,207.72,9.95744758]
[1731216504341,32.60099737,207.74,207.72,5.14944758]
[1731216504545,32.60099737,207.76,207.72,4.808]
[1731216505443,32.60099737,207.74,207.72,4.808]
[1731216505953,32.60099737,207.74,207.73,4.56288921]
[1731216506842,32.60099737,207.74,207.72,9.37088921]
[1731216507153,32.60099737,207.74,207.72,4.808]
[1731216507360,32.60099737,207.74,207.57,44.21836988]
[1731216507361,32.60099737,207.73,207.57,44.21836988]
[1731216507556,54.28569737,207.74,207.58,5.14944758]
[1731216507557,32.60099737,207.67,207.58,5.14944758]
[1731216507745,21.6847,207.74,207.59,24.58076537]
[1731216507746,32.60099737,207.69,207.59,24.58076537]
[1731216507947,32.60099737,207.69,207.6,18.32028649]
[1731216508139,32.60099737,207.71,207.6,18.32028649]
[1731216508335,32.60099737,207.69,207.61,4.808]
[1731216508540,32.60099737,207.67,207.61,5.14944758]
[1731216508835,21.6847,207.74,207.52,0.1]
[1731216508836,32.60099737,207.63,207.55,5.14944758]
[1731216509044,32.60099737,207.63,207.56,24.88846438]
[1731216509260,32.60099737,207.63,207.57,5.14944758]
[1731216510046,32.60099737,207.65,207.57,18.32028649]
[1731216510242,32.60099737,207.62,207.58,13.17083891]
[1731216510562,32.60099737,207.6,207.55,29.90633158]
[1731216511643,32.60099737,207.59,207.55,5.14944758]
[1731216511954,32.60099737,207.57,207.51,5.14944758]
[1731216512140,32.60099737,207.58,207.51,5.14944758]
[1731216512335,32.60099737,207.59,207.51,5.14944758]
[1731216512562,32.60099737,207.58,207.51,5.14944758]
[1731216512944,0.1,207.61,207.51,5.14944758]
[1731216512945,32.60099737,207.57,207.51,5.14944758]
[1731216513846,20.6847,207.56,207.51,11.62432537]
[1731216514245,32.60099737,207.58,207.51,11.62432537]
[1731216514246,32.60099737,207.6,207.52,12.80250558]
[1731216514563,32.60099737,207.58,207.53,5.14944758]
[1731216514741,32.60099737,207.57,207.53,5.14944758]
[1731216515462,32.60099737,207.55,207.53,5.14944758]
[1731216515757,32.60099737,207.54,207.47,6.47487779]
[1731216515967,32.60099737,207.49,207.47,6.47487779]
[1731216516344,32.60099737,207.48,207.47,6.47487779]
[1731216516544,32.60099737,207.48,207.39,6.47487779]
[1731216516749,32.60099737,207.49,207.39,30.58634703]
[1731216516956,32.60099737,207.49,207.4,5.14944758]
[1731216517239,32.60099737,207.49,207.41,6.47487779]
[1731216517439,32.60099737,207.47,207.42,9.95744758]
[1731216517766,32.60099737,207.47,207.44,4.808]
[1731216518072,32.60099737,207.47,207.46,4.808]
[1731216518654,32.60099737,207.47,207.38,6.47487779]
[1731216518862,32.60099737,207.39,207.38,11.62432537]
[1731216519164,0.1,207.48,207.38,11.62432537]
[1731216519466,32.60099737,207.41,207.39,6.47487779]
[1731216519661,6.5703,207.5,207.4,4.808]
[1731216519963,39.07129737,207.5,207.41,16.43232537]
[1731216520157,0.1,207.49,207.41,11.62432537]
[1731216520362,32.60099737,207.42,207.41,5.14944758]
[1731216520548,32.60099737,207.42,207.35,4.808]
[1731216520858,32.60099737,207.43,207.37,4.808]
[1731216521064,68.6,207.49,207.39,4.808]
[1731216521065,32.60099737,207.44,207.39,4.808]
[1731216521248,101.20099737,207.49,207.41,4.808]
[1731216521447,32.60099737,207.48,207.41,16.43232537]
[1731216521644,32.60099737,207.46,207.41,16.43232537]
[1731216521848,6.4703,207.5,207.41,16.43232537]
[1731216522045,32.60099737,207.47,207.41,16.43232537]
[1731216522243,6.4703,207.5,207.41,16.43232537]
[1731216522244,32.60099737,207.46,207.41,9.95744758]
[1731216522472,0.1,207.49,207.41,9.95744758]
[1731216522660,32.60099737,207.45,207.41,9.95744758]
[1731216522960,32.60099737,207.46,207.41,9.95744758]
[1731216523462,32.60099737,207.44,207.37,9.95744758]
[1731216523641,32.60099737,207.45,207.39,4.808]
[1731216524042,32.60099737,207.45,207.39,11.28287779]
[1731216524846,0.1,207.62,207.4,41.01914168]
[1731216525061,17.89023689,207.56,207.46,4.808]
[1731216525372,32.60099737,207.58,207.48,4.808]
[1731216525546,32.60099737,207.6,207.5,4.808]
[1731216525747,32.60099737,207.61,207.52,4.808]
[1731216525947,32.60099737,207.55,207.54,4.808]
[1731216526253,32.60099737,207.58,207.54,4.808]
[1731216526765,0.1,207.64,207.54,4.808]
[1731216526766,32.60099737,207.6,207.54,4.808]
[1731216527263,32.60099737,207.62,207.54,4.808]
[1731216527862,55.07209737,207.62,207.54,4.808]
[1731216528071,32.60099737,207.6,207.54,4.808]
[1731216528361,32.60099737,207.59,207.49,4.808]
[1731216528568,32.60099737,207.59,207.51,4.808]
[1731216529652,32.60099737,207.59,207.49,4.808]
[1731216529854,32.60099737,207.59,207.49,11.28287779]
[1731216531168,22.4711,207.71,207.55,0.1]
[1731216531376,0.1,207.77,207.66,29.73327143]
[1731216531556,0.1,207.72,207.68,4.808]
[1731216531750,32.70099737,207.72,207.68,4.808]
[1731216532250,32.70099737,207.76,207.68,4.808]
[1731216532650,32.70099737,207.74,207.67,4.808]
[1731216532850,32.70099737,207.76,207.67,4.808]
[1731216533047,68.6,207.77,207.67,4.808]
[1731216533272,6.5594,207.78,207.69,4.808]
[1731216533456,6.5594,207.78,207.69,12.63809796]
[1731216533658,6.5594,207.78,207.71,4.808]
[1731216534662,6.5594,207.78,207.68,4.808]
[1731216535559,15.9117,207.79,207.72,4.808]
[1731216535761,6.1871,207.83,207.72,4.808]
[1731216535762,6.2871,207.83,207.72,4.808]
[1731216535963,32.60099737,207.82,207.72,10.4041799]
[1731216536161,32.60099737,207.82,207.72,4.808]
[1731216536359,32.60099737,207.82,207.72,29.54033822]
[1731216536755,20.0,207.81,207.72,29.54033822]
[1731216537261,20.0,207.81,207.73,4.808]
[1731216537467,20.1,207.81,207.73,4.808]
[1731216537773,20.0,207.81,207.73,4.808]
[1731216538462,6.1871,207.83,207.73,18.23427786]
[1731216538674,6.1871,207.83,207.75,4.808]
[1731216538858,6.1871,207.83,207.77,4.808]
[1731216539974,32.98958848,207.82,207.78,4.808]
[1731216540158,32.70099737,207.82,207.78,4.808]
[1731216540362,20.0,207.81,207.78,4.808]
[1731216541066,20.0,207.81,207.7,24.24760204]
[1731216541067,32.60099737,207.8,207.71,4.808]
[1731216541248,52.60099737,207.81,207.71,4.808]
[1731216541755,32.60099737,207.8,207.71,12.63809796]
[1731216541956,32.60099737,207.79,207.71,12.63809796]
[1731216542151,32.60099737,207.8,207.71,12.63809796]
[1731216542356,52.60099737,207.81,207.73,4.808]
[1731216542965,32.60099737,207.8,207.73,4.808]
[1731216543355,52.60099737,207.81,207.73,4.808]
[1731216543560,20.0,207.81,207.73,4.808]
[1731216543864,20.0,207.81,207.74,4.808]
[1731216544057,52.60099737,207.81,207.74,4.808]
[1731216544256,101.20099737,207.82,207.74,4.808]
[1731216544464,101.20099737,207.82,207.76,4.808]
[1731216544465,68.6,207.82,207.76,4.808]
[1731216544666,6.1871,207.83,207.78,4.808]
[1731216544969,6.1871,207.83,207.8,4.808]
[1731216545165,6.1871,207.83,207.8,12.63809796]
[1731216545481,8.14850975,208.0,207.81,7.97509796]
[1731216545654,8.14850975,208.0,207.86,4.808]
[1731216545851,8.14850975,208.0,207.95,4.808]
[1731216546072,8.14850975,208.0,207.97,28.83230868]
[1731216546286,8.14850975,208.0,207.99,4.808]
[1731216546583,16.1885,208.17,207.99,4.808]
[1731216546584,0.1,208.13,208.01,24.88233602]
[1731216546773,0.1,208.13,208.03,4.808]
[1731216546959,32.60099737,208.13,208.05,4.794]
[1731216547156,3.11618866,208.16,208.01,15.3321124]
[1731216547157,3.11618866,208.16,208.07,4.794]
[1731216547365,32.60099737,208.16,208.07,14.58167874]
[1731216547578,32.60099737,208.18,208.08,22.53792661]
[1731216547759,32.60099737,208.3,208.08,22.53792661]
[1731216547760,24.60432049,208.29,208.08,53.47704441]
[1731216547963,16.28640723,208.31,208.08,53.47704441]
[1731216547964,31.60099737,208.25,208.09,24.13014263]
[1731216548162,32.60099737,208.21,208.1,22.01185906]
[1731216548374,32.60099737,208.19,208.04,24.11079274]
[1731216548573,12.78821635,208.18,208.11,14.65244574]
[1731216548786,32.60099737,208.22,208.12,7.35941332]
[1731216548970,32.60099737,208.17,208.05,6.24942897]
[1731216549174,32.60099737,208.17,208.06,7.35941332]
[1731216549488,32.60099737,208.17,208.06,22.01185906]
[1731216549779,32.60099737,208.17,208.07,6.24942897]
[1731216550078,32.60099737,208.17,208.08,22.01185906]
[1731216551673,32.60099737,208.17,208.08,7.35941332]
[1731216552164,32.60099737,208.15,208.08,7.35941332]
[1731216552374,32.60099737,208.15,208.03,6.24942897]
[1731216552574,32.60099737,208.13,208.04,7.35941332]
[1731216553169,32.60099737,208.11,208.04,7.35941332]
[1731216553670,20.0,208.1,208.04,7.35941332]
[1731216554368,20.0,208.08,208.04,7.35941332]
[1731216554567,12.43878777,208.05,207.99,7.35941332]
[1731216554963,20.0,208.06,207.99,7.98926635]
[1731216555287,20.0,208.06,207.94,24.0565343]
[1731216555472,32.60099737,208.07,207.95,39.1670146]
[1731216555674,20.0,208.04,207.95,14.24016391]
[1731216556069,20.0,208.04,207.95,6.82790013]
[1731216556279,32.60099737,208.03,207.95,6.82790013]
[1731216556470,20.0,208.02,207.95,6.82790013]
[1731216557071,0.2,208.09,207.92,14.24016391]
[1731216557072,20.0,208.0,207.92,14.24016391]
[1731216557379,20.0,208.0,207.94,4.794]
[1731216557585,20.0,208.0,207.95,4.794]
[1731216558468,20.0,208.02,207.95,4.794]
[1731216558667,32.60099737,208.05,207.97,4.794]
[1731216558886,32.60099737,208.05,207.99,4.794]
[1731216559088,32.60099737,208.05,208.01,4.794]
[1731216559285,32.60099737,208.05,208.01,12.20626378]
[1731216559585,32.60099737,208.07,208.01,12.20626378]
[1731216560089,32.60099737,208.07,208.0,4.794]
[1731216560598,32.60099737,208.09,208.02,0.87433609]
[1731216560891,32.60099737,208.11,207.98,30.70917449]
[1731216561092,32.60099737,208.14,208.0,24.80236025]
[1731216561282,32.60099737,208.1,207.98,19.18847711]
[1731216561588,32.60099737,208.1,207.99,4.794]
[1731216562001,32.60099737,208.1,207.99,11.30746216]
[1731216562167,32.60099737,208.1,208.01,4.794]
[1731216562370,32.60099737,208.1,208.01,11.30746216]